{"text_format":"1","workbook":"xlsx","n_sheets":3,"sheets":["1. Raming met kostenposten","2. Kostenoverzicht SSK","3. Subsidieblad"],"not_rendered":{"charts":0,"images":0,"macros":1,"external_links":4,"defined_names":287,"comments":0,"pivot_tables":0},"unopened":[],"bounds":{"document_bytes":16777216,"sheet_cells":100000,"rows_first":2000,"rows_last":500,"rows_between":2000,"halvings":0,"cell_chars":16384,"cell_head_chars":4096},"cells_cut":0,"cells_raw":0,"read":"whole","date_system":"1900"}

{"sheet":"1. Raming met kostenposten","index":0,"n_rows":458,"n_cols":14,"rows_kept":458,"cut":false,"hidden":false,"merged":[[10,1,14,1],[9,1,9,2],[2,3,8,9],[10,2,14,2],[13,7,14,7]]}
[null,"Begrotingsformat Veilige Infra en Doorfietsroutes 2025"]
[null,"1. Raming met kostenposten",null,null,null,null,null,null,null,"versie 1 -             23 april 2025",null,"maak een keuze","maak een keuze","maak een keuze"]
[null,"Naam project","Naam project","\n\nALLEEN DE WITTE CELLEN ZIJN INVULBAAR",null,null,null,null,null,null,null,"Ja","Subsidiabel",0.35]
[null,"Wegbeheerder","Naam wegbeheerder",null,null,null,null,null,null,null,null,"Nee","Niet subsidiabel",0.75]
[null,"Fase","Naam fase",null,null,null,null,null,null,null,null,null,null,0.9]
[null,"Datum","datum",null,null,null,null,null,null,null,null,null,null,"Maatwerk"]
[null,"Prijspeil","jaartal"]
[null,"Opsteller","Naam"]
[null,"Controle","Naam"]
[]
[null,"Opmerkingen","Ruimte voor een eventuele toelichting"]
[null,null,null,null,null,null,"% Subsidiabel","maak een keuze",null,null,"subsidie 90% bij infraproject voor een doorfietsroute"]
[null,null,null,null,null,null,"% Maatwerk",0,null,null,"subsidie 75% bij infraproject ten behoeve van verkeersveiligheid wegen en fietspaden"]
[null,null,null,null,null,null,null,"Vul bij \"Maatwerk\" % in!",null,null,"subsidie 35% bij iinfraproject met rioleringswerkzaamheden"]
[]
[]
[null,"code","   beschrijving","hoeveelheden","eenheid","eenheidsprijs","totaal","subsidiecategorie","Subsidiabel","duurzaamheid"]
[null,null,null,null,null,null,null,"(artikel 3)"]
[]
[null,null,null,1,1,1E-3,{"$f":"D20*F20","v":1E-3},"maak een keuze",{"$f":"IF('1. Raming met kostenposten'!H20=\"Subsidiabel\",'1. Raming met kostenposten'!G20,0)","v":0},"maak een keuze"]
[null,null,null,null,null,null,{"$f":"D21*F21","v":0},"maak een keuze",{"$f":"IF('1. Raming met kostenposten'!H21=\"Subsidiabel\",'1. Raming met kostenposten'!G21,0)","v":0},"maak een keuze"]
[null,null,null,null,null,null,0,"maak een keuze",{"$f":"IF('1. Raming met kostenposten'!H22=\"Subsidiabel\",'1. Raming met kostenposten'!G22,0)","v":0},"maak een keuze"]
[null,null,null,null,null,null,0,"maak een keuze",{"$f":"IF('1. Raming met kostenposten'!H23=\"Subsidiabel\",'1. Raming met kostenposten'!G23,0)","v":0},"maak een keuze"]
[null,null,null,null,null,null,0,"maak een keuze",{"$f":"IF('1. Raming met kostenposten'!H24=\"Subsidiabel\",'1. Raming met kostenposten'!G24,0)","v":0},"maak een keuze"]
[null,null,null,null,null,null,0,"maak een keuze",{"$f":"IF('1. Raming met kostenposten'!H25=\"Subsidiabel\",'1. Raming met kostenposten'!G25,0)","v":0},"maak een keuze"]
[null,null,null,null,null,null,0,"maak een keuze",{"$f":"IF('1. Raming met kostenposten'!H26=\"Subsidiabel\",'1. Raming met kostenposten'!G26,0)","v":0},"maak een keuze"]
[null,null,null,null,null,null,0,"maak een keuze",{"$f":"IF('1. Raming met kostenposten'!H27=\"Subsidiabel\",'1. Raming met kostenposten'!G27,0)","v":0},"maak een keuze"]
[null,null,null,null,null,null,0,"maak een keuze",{"$f":"IF('1. Raming met kostenposten'!H28=\"Subsidiabel\",'1. Raming met kostenposten'!G28,0)","v":0},"maak een keuze"]
[null,null,null,null,null,null,0,"maak een keuze",{"$f":"IF('1. Raming met kostenposten'!H29=\"Subsidiabel\",'1. Raming met kostenposten'!G29,0)","v":0},"maak een keuze"]
[null,null,null,null,null,null,0,"maak een keuze",{"$f":"IF('1. Raming met kostenposten'!H30=\"Subsidiabel\",'1. Raming met kostenposten'!G30,0)","v":0},"maak een keuze"]
[null,null,null,null,null,null,0,"maak een keuze",{"$f":"IF('1. Raming met kostenposten'!H31=\"Subsidiabel\",'1. Raming met kostenposten'!G31,0)","v":0},"maak een keuze"]
[null,null,null,null,null,null,0,"maak een keuze",{"$f":"IF('1. Raming met kostenposten'!H32=\"Subsidiabel\",'1. Raming met kostenposten'!G32,0)","v":0},"maak een keuze"]
[null,null,null,null,null,null,0,"maak een keuze",{"$f":"IF('1. Raming met kostenposten'!H33=\"Subsidiabel\",'1. Raming met kostenposten'!G33,0)","v":0},"maak een keuze"]
[null,null,null,null,null,null,0,"maak een keuze",{"$f":"IF('1. Raming met kostenposten'!H34=\"Subsidiabel\",'1. Raming met kostenposten'!G34,0)","v":0},"maak een keuze"]
[null,null,null,null,null,null,0,"maak een keuze",{"$f":"IF('1. Raming met kostenposten'!H35=\"Subsidiabel\",'1. Raming met kostenposten'!G35,0)","v":0},"maak een keuze"]
[null,null,null,null,null,null,0,"maak een keuze",{"$f":"IF('1. Raming met kostenposten'!H36=\"Subsidiabel\",'1. Raming met kostenposten'!G36,0)","v":0},"maak een keuze"]
[null,null,null,null,null,null,0,"maak een keuze",{"$f":"IF('1. Raming met kostenposten'!H37=\"Subsidiabel\",'1. Raming met kostenposten'!G37,0)","v":0},"maak een keuze"]
[null,null,null,null,null,null,0,"maak een keuze",{"$f":"IF('1. Raming met kostenposten'!H38=\"Subsidiabel\",'1. Raming met kostenposten'!G38,0)","v":0},"maak een keuze"]
[null,null,null,null,null,null,0,"maak een keuze",{"$f":"IF('1. Raming met kostenposten'!H39=\"Subsidiabel\",'1. Raming met kostenposten'!G39,0)","v":0},"maak een keuze"]
[null,null,null,null,null,null,0,"maak een keuze",{"$f":"IF('1. Raming met kostenposten'!H40=\"Subsidiabel\",'1. Raming met kostenposten'!G40,0)","v":0},"maak een keuze"]
[null,null,null,null,null,null,0,"maak een keuze",{"$f":"IF('1. Raming met kostenposten'!H41=\"Subsidiabel\",'1. Raming met kostenposten'!G41,0)","v":0},"maak een keuze"]
[null,null,null,null,null,null,0,"maak een keuze",{"$f":"IF('1. Raming met kostenposten'!H42=\"Subsidiabel\",'1. Raming met kostenposten'!G42,0)","v":0},"maak een keuze"]
[null,null,null,null,null,null,0,"maak een keuze",{"$f":"IF('1. Raming met kostenposten'!H43=\"Subsidiabel\",'1. Raming met kostenposten'!G43,0)","v":0},"maak een keuze"]
[null,null,null,null,null,null,0,"maak een keuze",{"$f":"IF('1. Raming met kostenposten'!H44=\"Subsidiabel\",'1. Raming met kostenposten'!G44,0)","v":0},"maak een keuze"]
[null,null,null,null,null,null,0,"maak een keuze",{"$f":"IF('1. Raming met kostenposten'!H45=\"Subsidiabel\",'1. Raming met kostenposten'!G45,0)","v":0},"maak een keuze"]
[null,null,null,null,null,null,0,"maak een keuze",{"$f":"IF('1. Raming met kostenposten'!H46=\"Subsidiabel\",'1. Raming met kostenposten'!G46,0)","v":0},"maak een keuze"]
[null,null,null,null,null,null,0,"maak een keuze",{"$f":"IF('1. Raming met kostenposten'!H47=\"Subsidiabel\",'1. Raming met kostenposten'!G47,0)","v":0},"maak een keuze"]
[null,null,null,null,null,null,0,"maak een keuze",{"$f":"IF('1. Raming met kostenposten'!H48=\"Subsidiabel\",'1. Raming met kostenposten'!G48,0)","v":0},"maak een keuze"]
[null,null,null,null,null,null,0,"maak een keuze",{"$f":"IF('1. Raming met kostenposten'!H49=\"Subsidiabel\",'1. Raming met kostenposten'!G49,0)","v":0},"maak een keuze"]
[null,null,null,null,null,null,0,"maak een keuze",{"$f":"IF('1. Raming met kostenposten'!H50=\"Subsidiabel\",'1. Raming met kostenposten'!G50,0)","v":0},"maak een keuze"]
[null,null,null,null,null,null,0,"maak een keuze",{"$f":"IF('1. Raming met kostenposten'!H51=\"Subsidiabel\",'1. Raming met kostenposten'!G51,0)","v":0},"maak een keuze"]
[null,null,null,null,null,null,0,"maak een keuze",{"$f":"IF('1. Raming met kostenposten'!H52=\"Subsidiabel\",'1. Raming met kostenposten'!G52,0)","v":0},"maak een keuze"]
[null,null,null,null,null,null,0,"maak een keuze",{"$f":"IF('1. Raming met kostenposten'!H53=\"Subsidiabel\",'1. Raming met kostenposten'!G53,0)","v":0},"maak een keuze"]
[null,null,null,null,null,null,0,"maak een keuze",{"$f":"IF('1. Raming met kostenposten'!H54=\"Subsidiabel\",'1. Raming met kostenposten'!G54,0)","v":0},"maak een keuze"]
[null,null,null,null,null,null,0,"maak een keuze",{"$f":"IF('1. Raming met kostenposten'!H55=\"Subsidiabel\",'1. Raming met kostenposten'!G55,0)","v":0},"maak een keuze"]
[null,null,null,null,null,null,0,"maak een keuze",{"$f":"IF('1. Raming met kostenposten'!H56=\"Subsidiabel\",'1. Raming met kostenposten'!G56,0)","v":0},"maak een keuze"]
[null,null,null,null,null,null,0,"maak een keuze",{"$f":"IF('1. Raming met kostenposten'!H57=\"Subsidiabel\",'1. Raming met kostenposten'!G57,0)","v":0},"maak een keuze"]
[null,null,null,null,null,null,0,"maak een keuze",{"$f":"IF('1. Raming met kostenposten'!H58=\"Subsidiabel\",'1. Raming met kostenposten'!G58,0)","v":0},"maak een keuze"]
[null,null,null,null,null,null,0,"maak een keuze",{"$f":"IF('1. Raming met kostenposten'!H59=\"Subsidiabel\",'1. Raming met kostenposten'!G59,0)","v":0},"maak een keuze"]
[null,null,null,null,null,null,0,"maak een keuze",{"$f":"IF('1. Raming met kostenposten'!H60=\"Subsidiabel\",'1. Raming met kostenposten'!G60,0)","v":0},"maak een keuze"]
[null,null,null,null,null,null,0,"maak een keuze",{"$f":"IF('1. Raming met kostenposten'!H61=\"Subsidiabel\",'1. Raming met kostenposten'!G61,0)","v":0},"maak een keuze"]
[null,null,null,null,null,null,0,"maak een keuze",{"$f":"IF('1. Raming met kostenposten'!H62=\"Subsidiabel\",'1. Raming met kostenposten'!G62,0)","v":0},"maak een keuze"]
[null,null,null,null,null,null,0,"maak een keuze",{"$f":"IF('1. Raming met kostenposten'!H63=\"Subsidiabel\",'1. Raming met kostenposten'!G63,0)","v":0},"maak een keuze"]
[null,null,null,null,null,null,0,"maak een keuze",{"$f":"IF('1. Raming met kostenposten'!H64=\"Subsidiabel\",'1. Raming met kostenposten'!G64,0)","v":0},"maak een keuze"]
[null,null,null,null,null,null,0,"maak een keuze",{"$f":"IF('1. Raming met kostenposten'!H65=\"Subsidiabel\",'1. Raming met kostenposten'!G65,0)","v":0},"maak een keuze"]
[null,null,null,null,null,null,0,"maak een keuze",{"$f":"IF('1. Raming met kostenposten'!H66=\"Subsidiabel\",'1. Raming met kostenposten'!G66,0)","v":0},"maak een keuze"]
[null,null,null,null,null,null,0,"maak een keuze",{"$f":"IF('1. Raming met kostenposten'!H67=\"Subsidiabel\",'1. Raming met kostenposten'!G67,0)","v":0},"maak een keuze"]
[null,null,null,null,null,null,0,"maak een keuze",{"$f":"IF('1. Raming met kostenposten'!H68=\"Subsidiabel\",'1. Raming met kostenposten'!G68,0)","v":0},"maak een keuze"]
[null,null,null,null,null,null,0,"maak een keuze",{"$f":"IF('1. Raming met kostenposten'!H69=\"Subsidiabel\",'1. Raming met kostenposten'!G69,0)","v":0},"maak een keuze"]
[null,null,null,null,null,null,0,"maak een keuze",{"$f":"IF('1. Raming met kostenposten'!H70=\"Subsidiabel\",'1. Raming met kostenposten'!G70,0)","v":0},"maak een keuze"]
[null,null,null,null,null,null,0,"maak een keuze",{"$f":"IF('1. Raming met kostenposten'!H71=\"Subsidiabel\",'1. Raming met kostenposten'!G71,0)","v":0},"maak een keuze"]
[null,null,null,null,null,null,0,"maak een keuze",{"$f":"IF('1. Raming met kostenposten'!H72=\"Subsidiabel\",'1. Raming met kostenposten'!G72,0)","v":0},"maak een keuze"]
[null,null,null,null,null,null,0,"maak een keuze",{"$f":"IF('1. Raming met kostenposten'!H73=\"Subsidiabel\",'1. Raming met kostenposten'!G73,0)","v":0},"maak een keuze"]
[null,null,null,null,null,null,0,"maak een keuze",{"$f":"IF('1. Raming met kostenposten'!H74=\"Subsidiabel\",'1. Raming met kostenposten'!G74,0)","v":0},"maak een keuze"]
[null,null,null,null,null,null,0,"maak een keuze",{"$f":"IF('1. Raming met kostenposten'!H75=\"Subsidiabel\",'1. Raming met kostenposten'!G75,0)","v":0},"maak een keuze"]
[null,null,null,null,null,null,0,"maak een keuze",{"$f":"IF('1. Raming met kostenposten'!H76=\"Subsidiabel\",'1. Raming met kostenposten'!G76,0)","v":0},"maak een keuze"]
[null,null,null,null,null,null,0,"maak een keuze",{"$f":"IF('1. Raming met kostenposten'!H77=\"Subsidiabel\",'1. Raming met kostenposten'!G77,0)","v":0},"maak een keuze"]
[null,null,null,null,null,null,0,"maak een keuze",{"$f":"IF('1. Raming met kostenposten'!H78=\"Subsidiabel\",'1. Raming met kostenposten'!G78,0)","v":0},"maak een keuze"]
[null,null,null,null,null,null,0,"maak een keuze",{"$f":"IF('1. Raming met kostenposten'!H79=\"Subsidiabel\",'1. Raming met kostenposten'!G79,0)","v":0},"maak een keuze"]
[null,null,null,null,null,null,0,"maak een keuze",{"$f":"IF('1. Raming met kostenposten'!H80=\"Subsidiabel\",'1. Raming met kostenposten'!G80,0)","v":0},"maak een keuze"]
[null,null,null,null,null,null,0,"maak een keuze",{"$f":"IF('1. Raming met kostenposten'!H81=\"Subsidiabel\",'1. Raming met kostenposten'!G81,0)","v":0},"maak een keuze"]
[null,null,null,null,null,null,0,"maak een keuze",{"$f":"IF('1. Raming met kostenposten'!H82=\"Subsidiabel\",'1. Raming met kostenposten'!G82,0)","v":0},"maak een keuze"]
[null,null,null,null,null,null,0,"maak een keuze",{"$f":"IF('1. Raming met kostenposten'!H83=\"Subsidiabel\",'1. Raming met kostenposten'!G83,0)","v":0},"maak een keuze"]
[null,null,null,null,null,null,0,"maak een keuze",{"$f":"IF('1. Raming met kostenposten'!H84=\"Subsidiabel\",'1. Raming met kostenposten'!G84,0)","v":0},"maak een keuze"]
[null,null,null,null,null,null,{"$f":"D85*F85","v":0},"maak een keuze",{"$f":"IF('1. Raming met kostenposten'!H85=\"Subsidiabel\",'1. Raming met kostenposten'!G85,0)","v":0},"maak een keuze"]
[null,null,null,null,null,null,0,"maak een keuze",{"$f":"IF('1. Raming met kostenposten'!H86=\"Subsidiabel\",'1. Raming met kostenposten'!G86,0)","v":0},"maak een keuze"]
[null,null,null,null,null,null,0,"maak een keuze",{"$f":"IF('1. Raming met kostenposten'!H87=\"Subsidiabel\",'1. Raming met kostenposten'!G87,0)","v":0},"maak een keuze"]
[null,null,null,null,null,null,0,"maak een keuze",{"$f":"IF('1. Raming met kostenposten'!H88=\"Subsidiabel\",'1. Raming met kostenposten'!G88,0)","v":0},"maak een keuze"]
[null,null,null,null,null,null,0,"maak een keuze",{"$f":"IF('1. Raming met kostenposten'!H89=\"Subsidiabel\",'1. Raming met kostenposten'!G89,0)","v":0},"maak een keuze"]
[null,null,null,null,null,null,0,"maak een keuze",{"$f":"IF('1. Raming met kostenposten'!H90=\"Subsidiabel\",'1. Raming met kostenposten'!G90,0)","v":0},"maak een keuze"]
[null,null,null,null,null,null,0,"maak een keuze",{"$f":"IF('1. Raming met kostenposten'!H91=\"Subsidiabel\",'1. Raming met kostenposten'!G91,0)","v":0},"maak een keuze"]
[null,null,null,null,null,null,0,"maak een keuze",{"$f":"IF('1. Raming met kostenposten'!H92=\"Subsidiabel\",'1. Raming met kostenposten'!G92,0)","v":0},"maak een keuze"]
[null,null,null,null,null,null,0,"maak een keuze",{"$f":"IF('1. Raming met kostenposten'!H93=\"Subsidiabel\",'1. Raming met kostenposten'!G93,0)","v":0},"maak een keuze"]
[null,null,null,null,null,null,0,"maak een keuze",{"$f":"IF('1. Raming met kostenposten'!H94=\"Subsidiabel\",'1. Raming met kostenposten'!G94,0)","v":0},"maak een keuze"]
[null,null,null,null,null,null,0,"maak een keuze",{"$f":"IF('1. Raming met kostenposten'!H95=\"Subsidiabel\",'1. Raming met kostenposten'!G95,0)","v":0},"maak een keuze"]
[null,null,null,null,null,null,0,"maak een keuze",{"$f":"IF('1. Raming met kostenposten'!H96=\"Subsidiabel\",'1. Raming met kostenposten'!G96,0)","v":0},"maak een keuze"]
[null,null,null,null,null,null,0,"maak een keuze",{"$f":"IF('1. Raming met kostenposten'!H97=\"Subsidiabel\",'1. Raming met kostenposten'!G97,0)","v":0},"maak een keuze"]
[null,null,null,null,null,null,0,"maak een keuze",{"$f":"IF('1. Raming met kostenposten'!H98=\"Subsidiabel\",'1. Raming met kostenposten'!G98,0)","v":0},"maak een keuze"]
[null,null,null,null,null,null,0,"maak een keuze",{"$f":"IF('1. Raming met kostenposten'!H99=\"Subsidiabel\",'1. Raming met kostenposten'!G99,0)","v":0},"maak een keuze"]
[null,null,null,null,null,null,0,"maak een keuze",{"$f":"IF('1. Raming met kostenposten'!H100=\"Subsidiabel\",'1. Raming met kostenposten'!G100,0)","v":0},"maak een keuze"]
[null,null,null,null,null,null,0,"maak een keuze",{"$f":"IF('1. Raming met kostenposten'!H101=\"Subsidiabel\",'1. Raming met kostenposten'!G101,0)","v":0},"maak een keuze"]
[null,null,null,null,null,null,0,"maak een keuze",{"$f":"IF('1. Raming met kostenposten'!H102=\"Subsidiabel\",'1. Raming met kostenposten'!G102,0)","v":0},"maak een keuze"]
[null,null,null,null,null,null,0,"maak een keuze",{"$f":"IF('1. Raming met kostenposten'!H103=\"Subsidiabel\",'1. Raming met kostenposten'!G103,0)","v":0},"maak een keuze"]
[null,null,null,null,null,null,0,"maak een keuze",{"$f":"IF('1. Raming met kostenposten'!H104=\"Subsidiabel\",'1. Raming met kostenposten'!G104,0)","v":0},"maak een keuze"]
[null,null,null,null,null,null,0,"maak een keuze",{"$f":"IF('1. Raming met kostenposten'!H105=\"Subsidiabel\",'1. Raming met kostenposten'!G105,0)","v":0},"maak een keuze"]
[null,null,null,null,null,null,0,"maak een keuze",{"$f":"IF('1. Raming met kostenposten'!H106=\"Subsidiabel\",'1. Raming met kostenposten'!G106,0)","v":0},"maak een keuze"]
[null,null,null,null,null,null,0,"maak een keuze",{"$f":"IF('1. Raming met kostenposten'!H107=\"Subsidiabel\",'1. Raming met kostenposten'!G107,0)","v":0},"maak een keuze"]
[null,null,null,null,null,null,0,"maak een keuze",{"$f":"IF('1. Raming met kostenposten'!H108=\"Subsidiabel\",'1. Raming met kostenposten'!G108,0)","v":0},"maak een keuze"]
[null,null,null,null,null,null,0,"maak een keuze",{"$f":"IF('1. Raming met kostenposten'!H109=\"Subsidiabel\",'1. Raming met kostenposten'!G109,0)","v":0},"maak een keuze"]
[null,null,null,null,null,null,0,"maak een keuze",{"$f":"IF('1. Raming met kostenposten'!H110=\"Subsidiabel\",'1. Raming met kostenposten'!G110,0)","v":0},"maak een keuze"]
[null,null,null,null,null,null,0,"maak een keuze",{"$f":"IF('1. Raming met kostenposten'!H111=\"Subsidiabel\",'1. Raming met kostenposten'!G111,0)","v":0},"maak een keuze"]
[null,null,null,null,null,null,0,"maak een keuze",{"$f":"IF('1. Raming met kostenposten'!H112=\"Subsidiabel\",'1. Raming met kostenposten'!G112,0)","v":0},"maak een keuze"]
[null,null,null,null,null,null,0,"maak een keuze",{"$f":"IF('1. Raming met kostenposten'!H113=\"Subsidiabel\",'1. Raming met kostenposten'!G113,0)","v":0},"maak een keuze"]
[null,null,null,null,null,null,0,"maak een keuze",{"$f":"IF('1. Raming met kostenposten'!H114=\"Subsidiabel\",'1. Raming met kostenposten'!G114,0)","v":0},"maak een keuze"]
[null,null,null,null,null,null,0,"maak een keuze",{"$f":"IF('1. Raming met kostenposten'!H115=\"Subsidiabel\",'1. Raming met kostenposten'!G115,0)","v":0},"maak een keuze"]
[null,null,null,null,null,null,0,"maak een keuze",{"$f":"IF('1. Raming met kostenposten'!H116=\"Subsidiabel\",'1. Raming met kostenposten'!G116,0)","v":0},"maak een keuze"]
[null,null,null,null,null,null,0,"maak een keuze",{"$f":"IF('1. Raming met kostenposten'!H117=\"Subsidiabel\",'1. Raming met kostenposten'!G117,0)","v":0},"maak een keuze"]
[null,null,null,null,null,null,0,"maak een keuze",{"$f":"IF('1. Raming met kostenposten'!H118=\"Subsidiabel\",'1. Raming met kostenposten'!G118,0)","v":0},"maak een keuze"]
[null,null,null,null,null,null,0,"maak een keuze",{"$f":"IF('1. Raming met kostenposten'!H119=\"Subsidiabel\",'1. Raming met kostenposten'!G119,0)","v":0},"maak een keuze"]
[null,null,null,null,null,null,0,"maak een keuze",{"$f":"IF('1. Raming met kostenposten'!H120=\"Subsidiabel\",'1. Raming met kostenposten'!G120,0)","v":0},"maak een keuze"]
[null,null,null,null,null,null,0,"maak een keuze",{"$f":"IF('1. Raming met kostenposten'!H121=\"Subsidiabel\",'1. Raming met kostenposten'!G121,0)","v":0},"maak een keuze"]
[null,null,null,null,null,null,0,"maak een keuze",{"$f":"IF('1. Raming met kostenposten'!H122=\"Subsidiabel\",'1. Raming met kostenposten'!G122,0)","v":0},"maak een keuze"]
[null,null,null,null,null,null,0,"maak een keuze",{"$f":"IF('1. Raming met kostenposten'!H123=\"Subsidiabel\",'1. Raming met kostenposten'!G123,0)","v":0},"maak een keuze"]
[null,null,null,null,null,null,0,"maak een keuze",{"$f":"IF('1. Raming met kostenposten'!H124=\"Subsidiabel\",'1. Raming met kostenposten'!G124,0)","v":0},"maak een keuze"]
[null,null,null,null,null,null,0,"maak een keuze",{"$f":"IF('1. Raming met kostenposten'!H125=\"Subsidiabel\",'1. Raming met kostenposten'!G125,0)","v":0},"maak een keuze"]
[null,null,null,null,null,null,0,"maak een keuze",{"$f":"IF('1. Raming met kostenposten'!H126=\"Subsidiabel\",'1. Raming met kostenposten'!G126,0)","v":0},"maak een keuze"]
[null,null,null,null,null,null,0,"maak een keuze",{"$f":"IF('1. Raming met kostenposten'!H127=\"Subsidiabel\",'1. Raming met kostenposten'!G127,0)","v":0},"maak een keuze"]
[null,null,null,null,null,null,0,"maak een keuze",{"$f":"IF('1. Raming met kostenposten'!H128=\"Subsidiabel\",'1. Raming met kostenposten'!G128,0)","v":0},"maak een keuze"]
[null,null,null,null,null,null,0,"maak een keuze",{"$f":"IF('1. Raming met kostenposten'!H129=\"Subsidiabel\",'1. Raming met kostenposten'!G129,0)","v":0},"maak een keuze"]
[null,null,null,null,null,null,0,"maak een keuze",{"$f":"IF('1. Raming met kostenposten'!H130=\"Subsidiabel\",'1. Raming met kostenposten'!G130,0)","v":0},"maak een keuze"]
[null,null,null,null,null,null,0,"maak een keuze",{"$f":"IF('1. Raming met kostenposten'!H131=\"Subsidiabel\",'1. Raming met kostenposten'!G131,0)","v":0},"maak een keuze"]
[null,null,null,null,null,null,0,"maak een keuze",{"$f":"IF('1. Raming met kostenposten'!H132=\"Subsidiabel\",'1. Raming met kostenposten'!G132,0)","v":0},"maak een keuze"]
[null,null,null,null,null,null,0,"maak een keuze",{"$f":"IF('1. Raming met kostenposten'!H133=\"Subsidiabel\",'1. Raming met kostenposten'!G133,0)","v":0},"maak een keuze"]
[null,null,null,null,null,null,0,"maak een keuze",{"$f":"IF('1. Raming met kostenposten'!H134=\"Subsidiabel\",'1. Raming met kostenposten'!G134,0)","v":0},"maak een keuze"]
[null,null,null,null,null,null,0,"maak een keuze",{"$f":"IF('1. Raming met kostenposten'!H135=\"Subsidiabel\",'1. Raming met kostenposten'!G135,0)","v":0},"maak een keuze"]
[null,null,null,null,null,null,0,"maak een keuze",{"$f":"IF('1. Raming met kostenposten'!H136=\"Subsidiabel\",'1. Raming met kostenposten'!G136,0)","v":0},"maak een keuze"]
[null,null,null,null,null,null,0,"maak een keuze",{"$f":"IF('1. Raming met kostenposten'!H137=\"Subsidiabel\",'1. Raming met kostenposten'!G137,0)","v":0},"maak een keuze"]
[null,null,null,null,null,null,0,"maak een keuze",{"$f":"IF('1. Raming met kostenposten'!H138=\"Subsidiabel\",'1. Raming met kostenposten'!G138,0)","v":0},"maak een keuze"]
[null,null,null,null,null,null,0,"maak een keuze",{"$f":"IF('1. Raming met kostenposten'!H139=\"Subsidiabel\",'1. Raming met kostenposten'!G139,0)","v":0},"maak een keuze"]
[null,null,null,null,null,null,0,"maak een keuze",{"$f":"IF('1. Raming met kostenposten'!H140=\"Subsidiabel\",'1. Raming met kostenposten'!G140,0)","v":0},"maak een keuze"]
[null,null,null,null,null,null,0,"maak een keuze",{"$f":"IF('1. Raming met kostenposten'!H141=\"Subsidiabel\",'1. Raming met kostenposten'!G141,0)","v":0},"maak een keuze"]
[null,null,null,null,null,null,0,"maak een keuze",{"$f":"IF('1. Raming met kostenposten'!H142=\"Subsidiabel\",'1. Raming met kostenposten'!G142,0)","v":0},"maak een keuze"]
[null,null,null,null,null,null,0,"maak een keuze",{"$f":"IF('1. Raming met kostenposten'!H143=\"Subsidiabel\",'1. Raming met kostenposten'!G143,0)","v":0},"maak een keuze"]
[null,null,null,null,null,null,0,"maak een keuze",{"$f":"IF('1. Raming met kostenposten'!H144=\"Subsidiabel\",'1. Raming met kostenposten'!G144,0)","v":0},"maak een keuze"]
[null,null,null,null,null,null,0,"maak een keuze",{"$f":"IF('1. Raming met kostenposten'!H145=\"Subsidiabel\",'1. Raming met kostenposten'!G145,0)","v":0},"maak een keuze"]
[null,null,null,null,null,null,0,"maak een keuze",{"$f":"IF('1. Raming met kostenposten'!H146=\"Subsidiabel\",'1. Raming met kostenposten'!G146,0)","v":0},"maak een keuze"]
[null,null,null,null,null,null,0,"maak een keuze",{"$f":"IF('1. Raming met kostenposten'!H147=\"Subsidiabel\",'1. Raming met kostenposten'!G147,0)","v":0},"maak een keuze"]
[null,null,null,null,null,null,0,"maak een keuze",{"$f":"IF('1. Raming met kostenposten'!H148=\"Subsidiabel\",'1. Raming met kostenposten'!G148,0)","v":0},"maak een keuze"]
[null,null,null,null,null,null,{"$f":"D149*F149","v":0},"maak een keuze",{"$f":"IF('1. Raming met kostenposten'!H149=\"Subsidiabel\",'1. Raming met kostenposten'!G149,0)","v":0},"maak een keuze"]
[null,null,null,null,null,null,{"$f":"D150*F150","v":0},"maak een keuze",{"$f":"IF('1. Raming met kostenposten'!H150=\"Subsidiabel\",'1. Raming met kostenposten'!G150,0)","v":0},"maak een keuze"]
[null,null,null,null,null,null,0,"maak een keuze",{"$f":"IF('1. Raming met kostenposten'!H151=\"Subsidiabel\",'1. Raming met kostenposten'!G151,0)","v":0},"maak een keuze"]
[null,null,null,null,null,null,0,"maak een keuze",{"$f":"IF('1. Raming met kostenposten'!H152=\"Subsidiabel\",'1. Raming met kostenposten'!G152,0)","v":0},"maak een keuze"]
[null,null,null,null,null,null,0,"maak een keuze",{"$f":"IF('1. Raming met kostenposten'!H153=\"Subsidiabel\",'1. Raming met kostenposten'!G153,0)","v":0},"maak een keuze"]
[null,null,null,null,null,null,0,"maak een keuze",{"$f":"IF('1. Raming met kostenposten'!H154=\"Subsidiabel\",'1. Raming met kostenposten'!G154,0)","v":0},"maak een keuze"]
[null,null,null,null,null,null,0,"maak een keuze",{"$f":"IF('1. Raming met kostenposten'!H155=\"Subsidiabel\",'1. Raming met kostenposten'!G155,0)","v":0},"maak een keuze"]
[null,null,null,null,null,null,0,"maak een keuze",{"$f":"IF('1. Raming met kostenposten'!H156=\"Subsidiabel\",'1. Raming met kostenposten'!G156,0)","v":0},"maak een keuze"]
[null,null,null,null,null,null,0,"maak een keuze",{"$f":"IF('1. Raming met kostenposten'!H157=\"Subsidiabel\",'1. Raming met kostenposten'!G157,0)","v":0},"maak een keuze"]
[null,null,null,null,null,null,0,"maak een keuze",{"$f":"IF('1. Raming met kostenposten'!H158=\"Subsidiabel\",'1. Raming met kostenposten'!G158,0)","v":0},"maak een keuze"]
[null,null,null,null,null,null,0,"maak een keuze",{"$f":"IF('1. Raming met kostenposten'!H159=\"Subsidiabel\",'1. Raming met kostenposten'!G159,0)","v":0},"maak een keuze"]
[null,null,null,null,null,null,0,"maak een keuze",{"$f":"IF('1. Raming met kostenposten'!H160=\"Subsidiabel\",'1. Raming met kostenposten'!G160,0)","v":0},"maak een keuze"]
[null,null,null,null,null,null,0,"maak een keuze",{"$f":"IF('1. Raming met kostenposten'!H161=\"Subsidiabel\",'1. Raming met kostenposten'!G161,0)","v":0},"maak een keuze"]
[null,null,null,null,null,null,0,"maak een keuze",{"$f":"IF('1. Raming met kostenposten'!H162=\"Subsidiabel\",'1. Raming met kostenposten'!G162,0)","v":0},"maak een keuze"]
[null,null,null,null,null,null,0,"maak een keuze",{"$f":"IF('1. Raming met kostenposten'!H163=\"Subsidiabel\",'1. Raming met kostenposten'!G163,0)","v":0},"maak een keuze"]
[null,null,null,null,null,null,0,"maak een keuze",{"$f":"IF('1. Raming met kostenposten'!H164=\"Subsidiabel\",'1. Raming met kostenposten'!G164,0)","v":0},"maak een keuze"]
[null,null,null,null,null,null,0,"maak een keuze",{"$f":"IF('1. Raming met kostenposten'!H165=\"Subsidiabel\",'1. Raming met kostenposten'!G165,0)","v":0},"maak een keuze"]
[null,null,null,null,null,null,0,"maak een keuze",{"$f":"IF('1. Raming met kostenposten'!H166=\"Subsidiabel\",'1. Raming met kostenposten'!G166,0)","v":0},"maak een keuze"]
[null,null,null,null,null,null,0,"maak een keuze",{"$f":"IF('1. Raming met kostenposten'!H167=\"Subsidiabel\",'1. Raming met kostenposten'!G167,0)","v":0},"maak een keuze"]
[null,null,null,null,null,null,0,"maak een keuze",{"$f":"IF('1. Raming met kostenposten'!H168=\"Subsidiabel\",'1. Raming met kostenposten'!G168,0)","v":0},"maak een keuze"]
[null,null,null,null,null,null,0,"maak een keuze",{"$f":"IF('1. Raming met kostenposten'!H169=\"Subsidiabel\",'1. Raming met kostenposten'!G169,0)","v":0},"maak een keuze"]
[null,null,null,null,null,null,0,"maak een keuze",{"$f":"IF('1. Raming met kostenposten'!H170=\"Subsidiabel\",'1. Raming met kostenposten'!G170,0)","v":0},"maak een keuze"]
[null,null,null,null,null,null,0,"maak een keuze",{"$f":"IF('1. Raming met kostenposten'!H171=\"Subsidiabel\",'1. Raming met kostenposten'!G171,0)","v":0},"maak een keuze"]
[null,null,null,null,null,null,0,"maak een keuze",{"$f":"IF('1. Raming met kostenposten'!H172=\"Subsidiabel\",'1. Raming met kostenposten'!G172,0)","v":0},"maak een keuze"]
[null,null,null,null,null,null,0,"maak een keuze",{"$f":"IF('1. Raming met kostenposten'!H173=\"Subsidiabel\",'1. Raming met kostenposten'!G173,0)","v":0},"maak een keuze"]
[null,null,null,null,null,null,{"$f":"D174*F174","v":0},"maak een keuze",{"$f":"IF('1. Raming met kostenposten'!H174=\"Subsidiabel\",'1. Raming met kostenposten'!G174,0)","v":0},"maak een keuze"]
[null,null,null,null,null,null,{"$f":"D175*F175","v":0},"maak een keuze",{"$f":"IF('1. Raming met kostenposten'!H175=\"Subsidiabel\",'1. Raming met kostenposten'!G175,0)","v":0},"maak een keuze"]
[null,null,null,null,null,null,{"$f":"D176*F176","v":0},"maak een keuze",{"$f":"IF('1. Raming met kostenposten'!H176=\"Subsidiabel\",'1. Raming met kostenposten'!G176,0)","v":0},"maak een keuze"]
[null,null,null,null,null,null,{"$f":"D177*F177","v":0},"maak een keuze",{"$f":"IF('1. Raming met kostenposten'!H177=\"Subsidiabel\",'1. Raming met kostenposten'!G177,0)","v":0},"maak een keuze"]
[null,null,null,null,null,null,0,"maak een keuze",{"$f":"IF('1. Raming met kostenposten'!H178=\"Subsidiabel\",'1. Raming met kostenposten'!G178,0)","v":0},"maak een keuze"]
[null,null,null,null,null,null,0,"maak een keuze",{"$f":"IF('1. Raming met kostenposten'!H179=\"Subsidiabel\",'1. Raming met kostenposten'!G179,0)","v":0},"maak een keuze"]
[null,null,null,null,null,null,0,"maak een keuze",{"$f":"IF('1. Raming met kostenposten'!H180=\"Subsidiabel\",'1. Raming met kostenposten'!G180,0)","v":0},"maak een keuze"]
[null,null,null,null,null,null,0,"maak een keuze",{"$f":"IF('1. Raming met kostenposten'!H181=\"Subsidiabel\",'1. Raming met kostenposten'!G181,0)","v":0},"maak een keuze"]
[null,null,null,null,null,null,0,"maak een keuze",{"$f":"IF('1. Raming met kostenposten'!H182=\"Subsidiabel\",'1. Raming met kostenposten'!G182,0)","v":0},"maak een keuze"]
[null,null,null,null,null,null,0,"maak een keuze",{"$f":"IF('1. Raming met kostenposten'!H183=\"Subsidiabel\",'1. Raming met kostenposten'!G183,0)","v":0},"maak een keuze"]
[null,null,null,null,null,null,0,"maak een keuze",{"$f":"IF('1. Raming met kostenposten'!H184=\"Subsidiabel\",'1. Raming met kostenposten'!G184,0)","v":0},"maak een keuze"]
[null,null,null,null,null,null,0,"maak een keuze",{"$f":"IF('1. Raming met kostenposten'!H185=\"Subsidiabel\",'1. Raming met kostenposten'!G185,0)","v":0},"maak een keuze"]
[null,null,null,null,null,null,0,"maak een keuze",{"$f":"IF('1. Raming met kostenposten'!H186=\"Subsidiabel\",'1. Raming met kostenposten'!G186,0)","v":0},"maak een keuze"]
[null,null,null,null,null,null,0,"maak een keuze",{"$f":"IF('1. Raming met kostenposten'!H187=\"Subsidiabel\",'1. Raming met kostenposten'!G187,0)","v":0},"maak een keuze"]
[null,null,null,null,null,null,0,"maak een keuze",{"$f":"IF('1. Raming met kostenposten'!H188=\"Subsidiabel\",'1. Raming met kostenposten'!G188,0)","v":0},"maak een keuze"]
[null,null,null,null,null,null,0,"maak een keuze",{"$f":"IF('1. Raming met kostenposten'!H189=\"Subsidiabel\",'1. Raming met kostenposten'!G189,0)","v":0},"maak een keuze"]
[null,null,null,null,null,null,0,"maak een keuze",{"$f":"IF('1. Raming met kostenposten'!H190=\"Subsidiabel\",'1. Raming met kostenposten'!G190,0)","v":0},"maak een keuze"]
[null,null,null,null,null,null,0,"maak een keuze",{"$f":"IF('1. Raming met kostenposten'!H191=\"Subsidiabel\",'1. Raming met kostenposten'!G191,0)","v":0},"maak een keuze"]
[null,null,null,null,null,null,0,"maak een keuze",{"$f":"IF('1. Raming met kostenposten'!H192=\"Subsidiabel\",'1. Raming met kostenposten'!G192,0)","v":0},"maak een keuze"]
[null,null,null,null,null,null,0,"maak een keuze",{"$f":"IF('1. Raming met kostenposten'!H193=\"Subsidiabel\",'1. Raming met kostenposten'!G193,0)","v":0},"maak een keuze"]
[null,null,null,null,null,null,0,"maak een keuze",{"$f":"IF('1. Raming met kostenposten'!H194=\"Subsidiabel\",'1. Raming met kostenposten'!G194,0)","v":0},"maak een keuze"]
[null,null,null,null,null,null,0,"maak een keuze",{"$f":"IF('1. Raming met kostenposten'!H195=\"Subsidiabel\",'1. Raming met kostenposten'!G195,0)","v":0},"maak een keuze"]
[null,null,null,null,null,null,0,"maak een keuze",{"$f":"IF('1. Raming met kostenposten'!H196=\"Subsidiabel\",'1. Raming met kostenposten'!G196,0)","v":0},"maak een keuze"]
[null,null,null,null,null,null,0,"maak een keuze",{"$f":"IF('1. Raming met kostenposten'!H197=\"Subsidiabel\",'1. Raming met kostenposten'!G197,0)","v":0},"maak een keuze"]
[null,null,null,null,null,null,0,"maak een keuze",{"$f":"IF('1. Raming met kostenposten'!H198=\"Subsidiabel\",'1. Raming met kostenposten'!G198,0)","v":0},"maak een keuze"]
[null,null,null,null,null,null,0,"maak een keuze",{"$f":"IF('1. Raming met kostenposten'!H199=\"Subsidiabel\",'1. Raming met kostenposten'!G199,0)","v":0},"maak een keuze"]
[null,null,null,null,null,null,0,"maak een keuze",{"$f":"IF('1. Raming met kostenposten'!H200=\"Subsidiabel\",'1. Raming met kostenposten'!G200,0)","v":0},"maak een keuze"]
[null,null,null,null,null,null,0,"maak een keuze",{"$f":"IF('1. Raming met kostenposten'!H201=\"Subsidiabel\",'1. Raming met kostenposten'!G201,0)","v":0},"maak een keuze"]
[null,null,null,null,null,null,0,"maak een keuze",{"$f":"IF('1. Raming met kostenposten'!H202=\"Subsidiabel\",'1. Raming met kostenposten'!G202,0)","v":0},"maak een keuze"]
[null,null,null,null,null,null,0,"maak een keuze",{"$f":"IF('1. Raming met kostenposten'!H203=\"Subsidiabel\",'1. Raming met kostenposten'!G203,0)","v":0},"maak een keuze"]
[null,null,null,null,null,null,{"$f":"D204*F204","v":0},"maak een keuze",{"$f":"IF('1. Raming met kostenposten'!H204=\"Subsidiabel\",'1. Raming met kostenposten'!G204,0)","v":0},"maak een keuze"]
[null,null,null,null,null,null,0,"maak een keuze",{"$f":"IF('1. Raming met kostenposten'!H205=\"Subsidiabel\",'1. Raming met kostenposten'!G205,0)","v":0},"maak een keuze"]
[null,null,null,null,null,null,0,"maak een keuze",{"$f":"IF('1. Raming met kostenposten'!H206=\"Subsidiabel\",'1. Raming met kostenposten'!G206,0)","v":0},"maak een keuze"]
[null,null,null,null,null,null,0,"maak een keuze",{"$f":"IF('1. Raming met kostenposten'!H207=\"Subsidiabel\",'1. Raming met kostenposten'!G207,0)","v":0},"maak een keuze"]
[null,null,null,null,null,null,0,"maak een keuze",{"$f":"IF('1. Raming met kostenposten'!H208=\"Subsidiabel\",'1. Raming met kostenposten'!G208,0)","v":0},"maak een keuze"]
[null,null,null,null,null,null,0,"maak een keuze",{"$f":"IF('1. Raming met kostenposten'!H209=\"Subsidiabel\",'1. Raming met kostenposten'!G209,0)","v":0},"maak een keuze"]
[null,null,null,null,null,null,0,"maak een keuze",{"$f":"IF('1. Raming met kostenposten'!H210=\"Subsidiabel\",'1. Raming met kostenposten'!G210,0)","v":0},"maak een keuze"]
[null,null,null,null,null,null,0,"maak een keuze",{"$f":"IF('1. Raming met kostenposten'!H211=\"Subsidiabel\",'1. Raming met kostenposten'!G211,0)","v":0},"maak een keuze"]
[null,null,null,null,null,null,0,"maak een keuze",{"$f":"IF('1. Raming met kostenposten'!H212=\"Subsidiabel\",'1. Raming met kostenposten'!G212,0)","v":0},"maak een keuze"]
[null,null,null,null,null,null,0,"maak een keuze",{"$f":"IF('1. Raming met kostenposten'!H213=\"Subsidiabel\",'1. Raming met kostenposten'!G213,0)","v":0},"maak een keuze"]
[null,null,null,null,null,null,{"$f":"D214*F214","v":0},"maak een keuze",{"$f":"IF('1. Raming met kostenposten'!H214=\"Subsidiabel\",'1. Raming met kostenposten'!G214,0)","v":0},"maak een keuze"]
[null,null,null,null,null,null,0,"maak een keuze",{"$f":"IF('1. Raming met kostenposten'!H215=\"Subsidiabel\",'1. Raming met kostenposten'!G215,0)","v":0},"maak een keuze"]
[null,null,null,null,null,null,0,"maak een keuze",{"$f":"IF('1. Raming met kostenposten'!H216=\"Subsidiabel\",'1. Raming met kostenposten'!G216,0)","v":0},"maak een keuze"]
[null,null,null,null,null,null,{"$f":"D217*F217","v":0},"maak een keuze",{"$f":"IF('1. Raming met kostenposten'!H217=\"Subsidiabel\",'1. Raming met kostenposten'!G217,0)","v":0},"maak een keuze"]
[null,null,null,null,null,null,0,"maak een keuze",{"$f":"IF('1. Raming met kostenposten'!H218=\"Subsidiabel\",'1. Raming met kostenposten'!G218,0)","v":0},"maak een keuze"]
[null,null,null,null,null,null,{"$f":"D219*F219","v":0},"maak een keuze",{"$f":"IF('1. Raming met kostenposten'!H219=\"Subsidiabel\",'1. Raming met kostenposten'!G219,0)","v":0},"maak een keuze"]
[null,null,null,null,null,null,{"$f":"D220*F220","v":0},"maak een keuze",{"$f":"IF('1. Raming met kostenposten'!H220=\"Subsidiabel\",'1. Raming met kostenposten'!G220,0)","v":0},"maak een keuze"]
[null,null,null,null,null,null,0,"maak een keuze",{"$f":"IF('1. Raming met kostenposten'!H221=\"Subsidiabel\",'1. Raming met kostenposten'!G221,0)","v":0},"maak een keuze"]
[null,null,null,null,null,null,0,"maak een keuze",{"$f":"IF('1. Raming met kostenposten'!H222=\"Subsidiabel\",'1. Raming met kostenposten'!G222,0)","v":0},"maak een keuze"]
[null,null,null,null,null,null,0,"maak een keuze",{"$f":"IF('1. Raming met kostenposten'!H223=\"Subsidiabel\",'1. Raming met kostenposten'!G223,0)","v":0},"maak een keuze"]
[null,null,null,null,null,null,0,"maak een keuze",{"$f":"IF('1. Raming met kostenposten'!H224=\"Subsidiabel\",'1. Raming met kostenposten'!G224,0)","v":0},"maak een keuze"]
[null,null,null,null,null,null,0,"maak een keuze",{"$f":"IF('1. Raming met kostenposten'!H225=\"Subsidiabel\",'1. Raming met kostenposten'!G225,0)","v":0},"maak een keuze"]
[null,null,null,null,null,null,0,"maak een keuze",{"$f":"IF('1. Raming met kostenposten'!H226=\"Subsidiabel\",'1. Raming met kostenposten'!G226,0)","v":0},"maak een keuze"]
[null,null,null,null,null,null,{"$f":"D227*F227","v":0},"maak een keuze",{"$f":"IF('1. Raming met kostenposten'!H227=\"Subsidiabel\",'1. Raming met kostenposten'!G227,0)","v":0},"maak een keuze"]
[null,null,null,null,null,null,0,"maak een keuze",{"$f":"IF('1. Raming met kostenposten'!H228=\"Subsidiabel\",'1. Raming met kostenposten'!G228,0)","v":0},"maak een keuze"]
[null,null,null,null,null,null,0,"maak een keuze",{"$f":"IF('1. Raming met kostenposten'!H229=\"Subsidiabel\",'1. Raming met kostenposten'!G229,0)","v":0},"maak een keuze"]
[null,null,null,null,null,null,0,"maak een keuze",{"$f":"IF('1. Raming met kostenposten'!H230=\"Subsidiabel\",'1. Raming met kostenposten'!G230,0)","v":0},"maak een keuze"]
[null,null,null,null,null,null,0,"maak een keuze",{"$f":"IF('1. Raming met kostenposten'!H231=\"Subsidiabel\",'1. Raming met kostenposten'!G231,0)","v":0},"maak een keuze"]
[null,null,null,null,null,null,0,"maak een keuze",{"$f":"IF('1. Raming met kostenposten'!H232=\"Subsidiabel\",'1. Raming met kostenposten'!G232,0)","v":0},"maak een keuze"]
[null,null,null,null,null,null,0,"maak een keuze",{"$f":"IF('1. Raming met kostenposten'!H233=\"Subsidiabel\",'1. Raming met kostenposten'!G233,0)","v":0},"maak een keuze"]
[null,null,null,null,null,null,0,"maak een keuze",{"$f":"IF('1. Raming met kostenposten'!H234=\"Subsidiabel\",'1. Raming met kostenposten'!G234,0)","v":0},"maak een keuze"]
[null,null,null,null,null,null,0,"maak een keuze",{"$f":"IF('1. Raming met kostenposten'!H235=\"Subsidiabel\",'1. Raming met kostenposten'!G235,0)","v":0},"maak een keuze"]
[null,null,null,null,null,null,0,"maak een keuze",{"$f":"IF('1. Raming met kostenposten'!H236=\"Subsidiabel\",'1. Raming met kostenposten'!G236,0)","v":0},"maak een keuze"]
[null,null,null,null,null,null,0,"maak een keuze",{"$f":"IF('1. Raming met kostenposten'!H237=\"Subsidiabel\",'1. Raming met kostenposten'!G237,0)","v":0},"maak een keuze"]
[null,null,null,null,null,null,0,"maak een keuze",{"$f":"IF('1. Raming met kostenposten'!H238=\"Subsidiabel\",'1. Raming met kostenposten'!G238,0)","v":0},"maak een keuze"]
[null,null,null,null,null,null,0,"maak een keuze",{"$f":"IF('1. Raming met kostenposten'!H239=\"Subsidiabel\",'1. Raming met kostenposten'!G239,0)","v":0},"maak een keuze"]
[null,null,null,null,null,null,0,"maak een keuze",{"$f":"IF('1. Raming met kostenposten'!H240=\"Subsidiabel\",'1. Raming met kostenposten'!G240,0)","v":0},"maak een keuze"]
[null,null,null,null,null,null,0,"maak een keuze",{"$f":"IF('1. Raming met kostenposten'!H241=\"Subsidiabel\",'1. Raming met kostenposten'!G241,0)","v":0},"maak een keuze"]
[null,null,null,null,null,null,0,"maak een keuze",{"$f":"IF('1. Raming met kostenposten'!H242=\"Subsidiabel\",'1. Raming met kostenposten'!G242,0)","v":0},"maak een keuze"]
[null,null,null,null,null,null,0,"maak een keuze",{"$f":"IF('1. Raming met kostenposten'!H243=\"Subsidiabel\",'1. Raming met kostenposten'!G243,0)","v":0},"maak een keuze"]
[null,null,null,null,null,null,0,"maak een keuze",{"$f":"IF('1. Raming met kostenposten'!H244=\"Subsidiabel\",'1. Raming met kostenposten'!G244,0)","v":0},"maak een keuze"]
[null,null,null,null,null,null,0,"maak een keuze",{"$f":"IF('1. Raming met kostenposten'!H245=\"Subsidiabel\",'1. Raming met kostenposten'!G245,0)","v":0},"maak een keuze"]
[null,null,null,null,null,null,0,"maak een keuze",{"$f":"IF('1. Raming met kostenposten'!H246=\"Subsidiabel\",'1. Raming met kostenposten'!G246,0)","v":0},"maak een keuze"]
[null,null,null,null,null,null,0,"maak een keuze",{"$f":"IF('1. Raming met kostenposten'!H247=\"Subsidiabel\",'1. Raming met kostenposten'!G247,0)","v":0},"maak een keuze"]
[null,null,null,null,null,null,0,"maak een keuze",{"$f":"IF('1. Raming met kostenposten'!H248=\"Subsidiabel\",'1. Raming met kostenposten'!G248,0)","v":0},"maak een keuze"]
[null,null,null,null,null,null,0,"maak een keuze",{"$f":"IF('1. Raming met kostenposten'!H249=\"Subsidiabel\",'1. Raming met kostenposten'!G249,0)","v":0},"maak een keuze"]
[null,null,null,null,null,null,0,"maak een keuze",{"$f":"IF('1. Raming met kostenposten'!H250=\"Subsidiabel\",'1. Raming met kostenposten'!G250,0)","v":0},"maak een keuze"]
[null,null,null,null,null,null,0,"maak een keuze",{"$f":"IF('1. Raming met kostenposten'!H251=\"Subsidiabel\",'1. Raming met kostenposten'!G251,0)","v":0},"maak een keuze"]
[null,null,null,null,null,null,0,"maak een keuze",{"$f":"IF('1. Raming met kostenposten'!H252=\"Subsidiabel\",'1. Raming met kostenposten'!G252,0)","v":0},"maak een keuze"]
[null,null,null,null,null,null,0,"maak een keuze",{"$f":"IF('1. Raming met kostenposten'!H253=\"Subsidiabel\",'1. Raming met kostenposten'!G253,0)","v":0},"maak een keuze"]
[null,null,null,null,null,null,{"$f":"D254*F254","v":0},"maak een keuze",{"$f":"IF('1. Raming met kostenposten'!H254=\"Subsidiabel\",'1. Raming met kostenposten'!G254,0)","v":0},"maak een keuze"]
[null,null,null,null,null,null,{"$f":"D255*F255","v":0},"maak een keuze",{"$f":"IF('1. Raming met kostenposten'!H255=\"Subsidiabel\",'1. Raming met kostenposten'!G255,0)","v":0},"maak een keuze"]
[null,null,null,null,null,null,{"$f":"D256*F256","v":0},"maak een keuze",{"$f":"IF('1. Raming met kostenposten'!H256=\"Subsidiabel\",'1. Raming met kostenposten'!G256,0)","v":0},"maak een keuze"]
[null,null,null,null,null,null,{"$f":"D257*F257","v":0},"maak een keuze",{"$f":"IF('1. Raming met kostenposten'!H257=\"Subsidiabel\",'1. Raming met kostenposten'!G257,0)","v":0},"maak een keuze"]
[null,null,null,null,null,null,0,"maak een keuze",{"$f":"IF('1. Raming met kostenposten'!H258=\"Subsidiabel\",'1. Raming met kostenposten'!G258,0)","v":0},"maak een keuze"]
[null,null,null,null,null,null,0,"maak een keuze",{"$f":"IF('1. Raming met kostenposten'!H259=\"Subsidiabel\",'1. Raming met kostenposten'!G259,0)","v":0},"maak een keuze"]
[null,null,null,null,null,null,0,"maak een keuze",{"$f":"IF('1. Raming met kostenposten'!H260=\"Subsidiabel\",'1. Raming met kostenposten'!G260,0)","v":0},"maak een keuze"]
[null,null,null,null,null,null,{"$f":"D261*F261","v":0},"maak een keuze",{"$f":"IF('1. Raming met kostenposten'!H261=\"Subsidiabel\",'1. Raming met kostenposten'!G261,0)","v":0},"maak een keuze"]
[null,null,null,null,null,null,{"$f":"D262*F262","v":0},"maak een keuze",{"$f":"IF('1. Raming met kostenposten'!H262=\"Subsidiabel\",'1. Raming met kostenposten'!G262,0)","v":0},"maak een keuze"]
[null,null,null,null,null,null,{"$f":"D263*F263","v":0},"maak een keuze",{"$f":"IF('1. Raming met kostenposten'!H263=\"Subsidiabel\",'1. Raming met kostenposten'!G263,0)","v":0},"maak een keuze"]
[null,null,null,null,null,null,{"$f":"D264*F264","v":0},"maak een keuze",{"$f":"IF('1. Raming met kostenposten'!H264=\"Subsidiabel\",'1. Raming met kostenposten'!G264,0)","v":0},"maak een keuze"]
[null,null,null,null,null,null,0,"maak een keuze",{"$f":"IF('1. Raming met kostenposten'!H265=\"Subsidiabel\",'1. Raming met kostenposten'!G265,0)","v":0},"maak een keuze"]
[null,null,null,null,null,null,0,"maak een keuze",{"$f":"IF('1. Raming met kostenposten'!H266=\"Subsidiabel\",'1. Raming met kostenposten'!G266,0)","v":0},"maak een keuze"]
[null,null,null,null,null,null,0,"maak een keuze",{"$f":"IF('1. Raming met kostenposten'!H267=\"Subsidiabel\",'1. Raming met kostenposten'!G267,0)","v":0},"maak een keuze"]
[null,null,null,null,null,null,{"$f":"D268*F268","v":0},"maak een keuze",{"$f":"IF('1. Raming met kostenposten'!H268=\"Subsidiabel\",'1. Raming met kostenposten'!G268,0)","v":0},"maak een keuze"]
[null,null,null,null,null,null,0,"maak een keuze",{"$f":"IF('1. Raming met kostenposten'!H269=\"Subsidiabel\",'1. Raming met kostenposten'!G269,0)","v":0},"maak een keuze"]
[null,null,null,null,null,null,0,"maak een keuze",{"$f":"IF('1. Raming met kostenposten'!H270=\"Subsidiabel\",'1. Raming met kostenposten'!G270,0)","v":0},"maak een keuze"]
[null,null,null,null,null,null,0,"maak een keuze",{"$f":"IF('1. Raming met kostenposten'!H271=\"Subsidiabel\",'1. Raming met kostenposten'!G271,0)","v":0},"maak een keuze"]
[null,null,null,null,null,null,0,"maak een keuze",{"$f":"IF('1. Raming met kostenposten'!H272=\"Subsidiabel\",'1. Raming met kostenposten'!G272,0)","v":0},"maak een keuze"]
[null,null,null,null,null,null,0,"maak een keuze",{"$f":"IF('1. Raming met kostenposten'!H273=\"Subsidiabel\",'1. Raming met kostenposten'!G273,0)","v":0},"maak een keuze"]
[null,null,null,null,null,null,0,"maak een keuze",{"$f":"IF('1. Raming met kostenposten'!H274=\"Subsidiabel\",'1. Raming met kostenposten'!G274,0)","v":0},"maak een keuze"]
[null,null,null,null,null,null,0,"maak een keuze",{"$f":"IF('1. Raming met kostenposten'!H275=\"Subsidiabel\",'1. Raming met kostenposten'!G275,0)","v":0},"maak een keuze"]
[null,null,null,null,null,null,0,"maak een keuze",{"$f":"IF('1. Raming met kostenposten'!H276=\"Subsidiabel\",'1. Raming met kostenposten'!G276,0)","v":0},"maak een keuze"]
[null,null,null,null,null,null,0,"maak een keuze",{"$f":"IF('1. Raming met kostenposten'!H277=\"Subsidiabel\",'1. Raming met kostenposten'!G277,0)","v":0},"maak een keuze"]
[null,null,null,null,null,null,0,"maak een keuze",{"$f":"IF('1. Raming met kostenposten'!H278=\"Subsidiabel\",'1. Raming met kostenposten'!G278,0)","v":0},"maak een keuze"]
[null,null,null,null,null,null,0,"maak een keuze",{"$f":"IF('1. Raming met kostenposten'!H279=\"Subsidiabel\",'1. Raming met kostenposten'!G279,0)","v":0},"maak een keuze"]
[null,null,null,null,null,null,0,"maak een keuze",{"$f":"IF('1. Raming met kostenposten'!H280=\"Subsidiabel\",'1. Raming met kostenposten'!G280,0)","v":0},"maak een keuze"]
[null,null,null,null,null,null,0,"maak een keuze",{"$f":"IF('1. Raming met kostenposten'!H281=\"Subsidiabel\",'1. Raming met kostenposten'!G281,0)","v":0},"maak een keuze"]
[null,null,null,null,null,null,0,"maak een keuze",{"$f":"IF('1. Raming met kostenposten'!H282=\"Subsidiabel\",'1. Raming met kostenposten'!G282,0)","v":0},"maak een keuze"]
[null,null,null,null,null,null,{"$f":"D283*F283","v":0},"maak een keuze",{"$f":"IF('1. Raming met kostenposten'!H283=\"Subsidiabel\",'1. Raming met kostenposten'!G283,0)","v":0},"maak een keuze"]
[null,null,null,null,null,null,0,"maak een keuze",{"$f":"IF('1. Raming met kostenposten'!H284=\"Subsidiabel\",'1. Raming met kostenposten'!G284,0)","v":0},"maak een keuze"]
[null,null,null,null,null,null,0,"maak een keuze",{"$f":"IF('1. Raming met kostenposten'!H285=\"Subsidiabel\",'1. Raming met kostenposten'!G285,0)","v":0},"maak een keuze"]
[null,null,null,null,null,null,0,"maak een keuze",{"$f":"IF('1. Raming met kostenposten'!H286=\"Subsidiabel\",'1. Raming met kostenposten'!G286,0)","v":0},"maak een keuze"]
[null,null,null,null,null,null,0,"maak een keuze",{"$f":"IF('1. Raming met kostenposten'!H287=\"Subsidiabel\",'1. Raming met kostenposten'!G287,0)","v":0},"maak een keuze"]
[null,null,null,null,null,null,0,"maak een keuze",{"$f":"IF('1. Raming met kostenposten'!H288=\"Subsidiabel\",'1. Raming met kostenposten'!G288,0)","v":0},"maak een keuze"]
[null,null,null,null,null,null,0,"maak een keuze",{"$f":"IF('1. Raming met kostenposten'!H289=\"Subsidiabel\",'1. Raming met kostenposten'!G289,0)","v":0},"maak een keuze"]
[null,null,null,null,null,null,0,"maak een keuze",{"$f":"IF('1. Raming met kostenposten'!H290=\"Subsidiabel\",'1. Raming met kostenposten'!G290,0)","v":0},"maak een keuze"]
[null,null,null,null,null,null,0,"maak een keuze",{"$f":"IF('1. Raming met kostenposten'!H291=\"Subsidiabel\",'1. Raming met kostenposten'!G291,0)","v":0},"maak een keuze"]
[null,null,null,null,null,null,0,"maak een keuze",{"$f":"IF('1. Raming met kostenposten'!H292=\"Subsidiabel\",'1. Raming met kostenposten'!G292,0)","v":0},"maak een keuze"]
[null,null,null,null,null,null,0,"maak een keuze",{"$f":"IF('1. Raming met kostenposten'!H293=\"Subsidiabel\",'1. Raming met kostenposten'!G293,0)","v":0},"maak een keuze"]
[null,null,null,null,null,null,0,"maak een keuze",{"$f":"IF('1. Raming met kostenposten'!H294=\"Subsidiabel\",'1. Raming met kostenposten'!G294,0)","v":0},"maak een keuze"]
[null,null,null,null,null,null,{"$f":"D295*F295","v":0},"maak een keuze",{"$f":"IF('1. Raming met kostenposten'!H295=\"Subsidiabel\",'1. Raming met kostenposten'!G295,0)","v":0},"maak een keuze"]
[null,null,null,null,null,null,0,"maak een keuze",{"$f":"IF('1. Raming met kostenposten'!H296=\"Subsidiabel\",'1. Raming met kostenposten'!G296,0)","v":0},"maak een keuze"]
[null,null,null,null,null,null,0,"maak een keuze",{"$f":"IF('1. Raming met kostenposten'!H297=\"Subsidiabel\",'1. Raming met kostenposten'!G297,0)","v":0},"maak een keuze"]
[null,null,null,null,null,null,0,"maak een keuze",{"$f":"IF('1. Raming met kostenposten'!H298=\"Subsidiabel\",'1. Raming met kostenposten'!G298,0)","v":0},"maak een keuze"]
[null,null,null,null,null,null,0,"maak een keuze",{"$f":"IF('1. Raming met kostenposten'!H299=\"Subsidiabel\",'1. Raming met kostenposten'!G299,0)","v":0},"maak een keuze"]
[null,null,null,null,null,null,{"$f":"D300*F300","v":0},"maak een keuze",{"$f":"IF('1. Raming met kostenposten'!H300=\"Subsidiabel\",'1. Raming met kostenposten'!G300,0)","v":0},"maak een keuze"]
[null,null,null,null,null,null,{"$f":"D301*F301","v":0},"maak een keuze",{"$f":"IF('1. Raming met kostenposten'!H301=\"Subsidiabel\",'1. Raming met kostenposten'!G301,0)","v":0},"maak een keuze"]
[null,null,null,null,null,null,0,"maak een keuze",{"$f":"IF('1. Raming met kostenposten'!H302=\"Subsidiabel\",'1. Raming met kostenposten'!G302,0)","v":0},"maak een keuze"]
[null,null,null,null,null,null,{"$f":"D303*F303","v":0},"maak een keuze",{"$f":"IF('1. Raming met kostenposten'!H303=\"Subsidiabel\",'1. Raming met kostenposten'!G303,0)","v":0},"maak een keuze"]
[null,null,null,null,null,null,{"$f":"D304*F304","v":0},"maak een keuze",{"$f":"IF('1. Raming met kostenposten'!H304=\"Subsidiabel\",'1. Raming met kostenposten'!G304,0)","v":0},"maak een keuze"]
[null,null,null,null,null,null,0,"maak een keuze",{"$f":"IF('1. Raming met kostenposten'!H305=\"Subsidiabel\",'1. Raming met kostenposten'!G305,0)","v":0},"maak een keuze"]
[null,null,null,null,null,null,0,"maak een keuze",{"$f":"IF('1. Raming met kostenposten'!H306=\"Subsidiabel\",'1. Raming met kostenposten'!G306,0)","v":0},"maak een keuze"]
[null,null,null,null,null,null,0,"maak een keuze",{"$f":"IF('1. Raming met kostenposten'!H307=\"Subsidiabel\",'1. Raming met kostenposten'!G307,0)","v":0},"maak een keuze"]
[null,null,null,null,null,null,0,"maak een keuze",{"$f":"IF('1. Raming met kostenposten'!H308=\"Subsidiabel\",'1. Raming met kostenposten'!G308,0)","v":0},"maak een keuze"]
[null,null,null,null,null,null,0,"maak een keuze",{"$f":"IF('1. Raming met kostenposten'!H309=\"Subsidiabel\",'1. Raming met kostenposten'!G309,0)","v":0},"maak een keuze"]
[null,null,null,null,null,null,0,"maak een keuze",{"$f":"IF('1. Raming met kostenposten'!H310=\"Subsidiabel\",'1. Raming met kostenposten'!G310,0)","v":0},"maak een keuze"]
[null,null,null,null,null,null,0,"maak een keuze",{"$f":"IF('1. Raming met kostenposten'!H311=\"Subsidiabel\",'1. Raming met kostenposten'!G311,0)","v":0},"maak een keuze"]
[null,null,null,null,null,null,{"$f":"D312*F312","v":0},"maak een keuze",{"$f":"IF('1. Raming met kostenposten'!H312=\"Subsidiabel\",'1. Raming met kostenposten'!G312,0)","v":0},"maak een keuze"]
[null,null,null,null,null,null,{"$f":"D313*F313","v":0},"maak een keuze",{"$f":"IF('1. Raming met kostenposten'!H313=\"Subsidiabel\",'1. Raming met kostenposten'!G313,0)","v":0},"maak een keuze"]
[null,null,null,null,null,null,{"$f":"D314*F314","v":0},"maak een keuze",{"$f":"IF('1. Raming met kostenposten'!H314=\"Subsidiabel\",'1. Raming met kostenposten'!G314,0)","v":0},"maak een keuze"]
[null,null,null,null,null,null,0,"maak een keuze",{"$f":"IF('1. Raming met kostenposten'!H315=\"Subsidiabel\",'1. Raming met kostenposten'!G315,0)","v":0},"maak een keuze"]
[null,null,null,null,null,null,{"$f":"D316*F316","v":0},"maak een keuze",{"$f":"IF('1. Raming met kostenposten'!H316=\"Subsidiabel\",'1. Raming met kostenposten'!G316,0)","v":0},"maak een keuze"]
[null,null,null,null,null,null,{"$f":"D317*F317","v":0},"maak een keuze",{"$f":"IF('1. Raming met kostenposten'!H317=\"Subsidiabel\",'1. Raming met kostenposten'!G317,0)","v":0},"maak een keuze"]
[null,null,null,null,null,null,{"$f":"D318*F318","v":0},"Subsidiabel",{"$f":"IF('1. Raming met kostenposten'!H318=\"Subsidiabel\",'1. Raming met kostenposten'!G318,0)","v":0},"maak een keuze"]
[null,null,null,null,null,null,{"$f":"D319*F319","v":0},"maak een keuze",{"$f":"IF('1. Raming met kostenposten'!H319=\"Subsidiabel\",'1. Raming met kostenposten'!G319,0)","v":0},"maak een keuze"]
[null,null,null,null,null,null,0,"maak een keuze",{"$f":"IF('1. Raming met kostenposten'!H320=\"Subsidiabel\",'1. Raming met kostenposten'!G320,0)","v":0},"maak een keuze"]
[null,null,null,null,null,null,0,"maak een keuze",{"$f":"IF('1. Raming met kostenposten'!H321=\"Subsidiabel\",'1. Raming met kostenposten'!G321,0)","v":0},"maak een keuze"]
[]
[null,null,"Benoemde directe bouwkosten",null,null,null,{"$f":"SUM(G20:G321)","v":1E-3},null,{"$f":"SUM(I20:I321)","v":0}]
[]
[null,null,"Nader te detailleren bouwkosten",0.15,"%",{"$f":"G323","v":1E-3},{"$f":"D325*F325","v":1.4999999999999999E-4},null,{"$f":"IF(D325<10%,D325*I323,10%*I323)","v":0}]
[]
[null,null,"Directe bouwkosten",null,null,null,{"$f":"G323+G325","v":1.15E-3},null,{"$f":"SUM(I323:I325)","v":0}]
[]
[null,null,"Eenmalige kosten",0.02,"%",{"$f":"G327","v":1.15E-3},{"$f":"D329*F329","v":2.3E-5}]
[]
[null,null,"Algemene bouwplaatskosten",0.02,"%",{"$f":"G327","v":1.15E-3},{"$f":"D331*F331","v":2.3E-5}]
[]
[null,null,"Uitvoeringskosten ",0.06,"%",{"$f":"G327","v":1.15E-3},{"$f":"D333*F333","v":6.8999999999999997E-5}]
[]
[null,null,"Projectmananagement",0.04,"%",{"$f":"G327","v":1.15E-3},{"$f":"D335*F335","v":4.6E-5}]
[]
[null,null,"Algemene kosten",0.08,"%",{"$f":"(G327+G329+G331+G333+G335)","v":1.3110000000000001E-3},{"$f":"D337*F337","v":1.0488000000000001E-4}]
[]
[null,null,"Winst",0.03,"%",{"$f":"(G327+G329+G331+G333+G335+G337)","v":1.41588E-3},{"$f":"D339*F339","v":4.2476399999999999E-5}]
[]
[null,null,"Risico",0.04,"%",{"$f":"(G327+G329+G331+G333+G335+G337)","v":1.41588E-3},{"$f":"D341*F341","v":5.6635200000000003E-5}]
[]
[null,null,"Indirecte bouwkosten",{"$f":"G343/G327","v":0.317384},null,null,{"$f":"SUM(G329:G341)","v":3.6499159999999999E-4},null,{"$f":"IF(D343<20%,D343*I327,20%*I327)","v":0}]
[]
[null,null,"Voorziene bouwkosten",null,null,null,{"$f":"G327+G343","v":1.5149916E-3},null,{"$f":"I327+I343","v":0}]
[]
[null,null,"Niet benoemde objectrisico bouwkosten (%)",0.1,"%",{"$f":"G345","v":1.5149916E-3},{"$f":"D347*F347","v":1.5149916000000002E-4}]
[]
[null,null,"Risico's bouwkosten",null,null,null,{"$f":"G347","v":1.5149916000000002E-4}]
[]
[null,null,"BOUWKOSTEN",null,null,null,{"$f":"G345+G349","v":1.6664907600000001E-3}]
[]
[]
[null,null,"Engineeringskosten Opdrachtgever",null,"euro",0,{"$f":"D354*F354","v":0}]
[]
[null,null,"Engineeringskosten Opdrachtnemer",null,"euro",null,{"$f":"D356*F356","v":0}]
[]
[null,null,"Benoemde directe engineeringskosten",null,null,null,{"$f":"G354+G356","v":0}]
[]
[null,null,"Nader te detailleren engineeringskosten",null,"%",{"$f":"G358","v":0},{"$f":"D360*F360","v":0}]
[]
[null,null,"Directe engineeringskosten",null,null,null,{"$f":"G358+G360","v":0}]
[]
[null,null,"Algemene kosten",null,"%",{"$f":"G362","v":0},{"$f":"D364*F364","v":0}]
[]
[null,null,"Winst",null,"%",{"$f":"G362+G364","v":0},{"$f":"D366*F366","v":0}]
[]
[null,null,"Risico",null,"%",{"$f":"G362+G364","v":0},{"$f":"D368*F368","v":0}]
[]
[null,null,"Indirecte engineeringskosten",{"$f":"IF(G362=0,0,G370/G362)","v":0},null,null,{"$f":"G364+G366+G368","v":0}]
[]
[null,null,"Voorziene engineeringskosten",null,null,null,{"$f":"G362+G370","v":0}]
[]
[null,null,"Niet benoemde objectrisico engineeringskosten (%)",null,"%",{"$f":"G372","v":0},{"$f":"D374*F374","v":0}]
[]
[null,null,"Risico's engineeringskosten",null,null,null,{"$f":"G374","v":0}]
[]
[null,null,"ENGINEERINGSKOSTEN",{"$f":"G378/G351","v":0},null,null,{"$f":"G372+G376","v":0}]
[]
[]
[null,null,null,null,null,null,{"$f":"D381*F381","v":0}]
[null,null,null,null,null,null,{"$f":"D382*F382","v":0}]
[null,null,null,null,null,null,{"$f":"D383*F383","v":0}]
[null,null,null,null,null,null,{"$f":"D384*F384","v":0}]
[null,null,null,null,null,null,{"$f":"D385*F385","v":0}]
[]
[null,null,"Benoemde directe vastgoedkosten",null,null,null,{"$f":"SUM(G381:G385)","v":0}]
[]
[null,null,"Nader te detailleren vastgoedkosten",null,"%",{"$f":"G387","v":0},{"$f":"D389*F389","v":0}]
[]
[null,null,"Directe vastgoedkosten",null,null,null,{"$f":"G387+G389","v":0}]
[]
[null,null,"Algemene kosten",null,"%",{"$f":"G391","v":0},{"$f":"D393*F393","v":0}]
[]
[null,null,"Winst",null,"%",{"$f":"G391+G393","v":0},{"$f":"D395*F395","v":0}]
[]
[null,null,"Risico",null,"%",{"$f":"G391+G393","v":0},{"$f":"D397*F397","v":0}]
[]
[null,null,"Indirecte vastgoedkosten",{"$f":"IF(G391=0,0,G399/G391)","v":0},null,null,{"$f":"SUM(G393:G397)","v":0}]
[]
[null,null,"Voorziene vastgoedkosten",null,null,null,{"$f":"G391+G399","v":0}]
[]
[null,null,"Niet benoemde objectrisico vastgoedkosten (%)",null,"%",{"$f":"G401","v":0},{"$f":"D403*F403","v":0}]
[]
[null,null,"Risico's vastgoedkosten",null,null,null,{"$f":"G403","v":0}]
[]
[null,null,"VASTGOEDKOSTEN",{"$f":"G407/G351","v":0},null,null,{"$f":"G401+G405","v":0}]
[null,null,null,null,null,null,null,"subsidiecategorie","Subsidiabel","duurzaamheid"]
[null,null,null,null,null,null,null,"(artikel 3)"]
[null,null,null,null,null,null,{"$f":"D410*F410","v":0},"maak een keuze",{"$f":"IF('1. Raming met kostenposten'!H410=\"Subsidiabel\",'1. Raming met kostenposten'!G410,0)","v":0},"maak een keuze"]
[null,null,null,null,null,null,{"$f":"D411*F411","v":0},"maak een keuze",{"$f":"IF('1. Raming met kostenposten'!H411=\"Subsidiabel\",'1. Raming met kostenposten'!G411,0)","v":0},"maak een keuze"]
[null,null,null,null,null,null,0,"maak een keuze",{"$f":"IF('1. Raming met kostenposten'!H412=\"Subsidiabel\",'1. Raming met kostenposten'!G412,0)","v":0},"maak een keuze"]
[null,null,null,null,null,null,0,"maak een keuze",{"$f":"IF('1. Raming met kostenposten'!H413=\"Subsidiabel\",'1. Raming met kostenposten'!G413,0)","v":0},"maak een keuze"]
[null,null,null,null,null,null,0,"maak een keuze",{"$f":"IF('1. Raming met kostenposten'!H414=\"Subsidiabel\",'1. Raming met kostenposten'!G414,0)","v":0},"maak een keuze"]
[null,null,null,null,null,null,0,"maak een keuze",{"$f":"IF('1. Raming met kostenposten'!H415=\"Subsidiabel\",'1. Raming met kostenposten'!G415,0)","v":0},"maak een keuze"]
[null,null,null,null,null,null,0,"maak een keuze",{"$f":"IF('1. Raming met kostenposten'!H416=\"Subsidiabel\",'1. Raming met kostenposten'!G416,0)","v":0},"maak een keuze"]
[null,null,null,null,null,null,0,"maak een keuze",{"$f":"IF('1. Raming met kostenposten'!H417=\"Subsidiabel\",'1. Raming met kostenposten'!G417,0)","v":0},"maak een keuze"]
[null,null,null,null,null,null,0,"maak een keuze",{"$f":"IF('1. Raming met kostenposten'!H418=\"Subsidiabel\",'1. Raming met kostenposten'!G418,0)","v":0},"maak een keuze"]
[null,null,null,null,null,null,0,"maak een keuze",{"$f":"IF('1. Raming met kostenposten'!H419=\"Subsidiabel\",'1. Raming met kostenposten'!G419,0)","v":0},"maak een keuze"]
[null,null,null,null,null,null,0,"maak een keuze",{"$f":"IF('1. Raming met kostenposten'!H420=\"Subsidiabel\",'1. Raming met kostenposten'!G420,0)","v":0},"maak een keuze"]
[]
[null,null,"Benoemde directe overige bijkomende kosten",null,null,null,{"$f":"SUM(G410:G420)","v":0},null,{"$f":"SUM(I410:I420)","v":0}]
[]
[null,null,"Nader te detailleren overige bijkomende kosten",0.05,"%",{"$f":"G422","v":0},{"$f":"D424*F424","v":0},null,{"$f":"IF(D424<10%,D424*I422,10%*I422)","v":0}]
[]
[null,null,"Directe overige bijkomende kosten",null,null,null,{"$f":"G422+G424","v":0},null,{"$f":"SUM(I422:I424)","v":0}]
[]
[null,null,"Algemene kosten",0.08,"%",{"$f":"G426","v":0},{"$f":"D428*F428","v":0}]
[]
[null,null,"Winst",0.04,"%",{"$f":"G426+G428","v":0},{"$f":"D430*F430","v":0}]
[]
[null,null,"Risico",0.03,"%",{"$f":"G426+G428","v":0},{"$f":"D432*F432","v":0}]
[]
[null,null,"Indirecte overige bijkomende kosten",{"$f":"IF(G426=0,0,G434/G426)","v":0},null,null,{"$f":"SUM(G428:G432)","v":0},null,{"$f":"IF(D434<15%,D434*I426,15%*I426)","v":0}]
[]
[null,null,"Voorziene overige bijkomende kosten",null,null,null,{"$f":"G426+G434","v":0},null,{"$f":"I426+I434","v":0}]
[]
[null,null,"Niet benoemde objectrisico overige bijkomende kosten (%)",null,"%",{"$f":"G436","v":0},{"$f":"D438*F438","v":0}]
[]
[null,null,"Risico's overige bijkomende kosten",null,null,null,{"$f":"G438","v":0}]
[]
[null,null,"OVERIGE BIJKOMENDE KOSTEN",{"$f":"G442/G351","v":0},null,null,{"$f":"G436+G440","v":0}]
[]
[null,null,"SUBTOTAAL INVESTERINGSKOSTEN",null,null,null,{"$f":"G442+G378+G407+G351","v":1.6664907600000001E-3}]
[]
[null,null,"Objectoverstijgend risico's ",null,"%",{"$f":"G444","v":1.6664907600000001E-3},{"$f":"D446*F446","v":0}]
[]
[null,null,"OBJECTOVERSTIJGENDE RISICO'S",0.05,null,null,{"$f":"G446","v":0}]
[]
[null,null,"INVESTERINGSKOSTEN DETERMINISTISCH",null,null,null,{"$f":"G444+G448","v":1.6664907600000001E-3}]
[]
[null,null,"Scheefte"]
[]
[null,null,"INVESTERINGSKOSTEN EXCLUSIEF",null,null,null,{"$f":"G450+G452","v":1.6664907600000001E-3}]
[]
[null,null,"BTW",0.21,"%",{"$f":"G454","v":1.6664907600000001E-3},{"$f":"D456*F456","v":3.4996305960000002E-4}]
[]
[null,null,"INVESTERINGSKOSTEN INCLUSIEF BTW",null,null,null,{"$f":"G454+G456","v":2.0164538195999999E-3}]

{"sheet":"2. Kostenoverzicht SSK","index":1,"n_rows":30,"n_cols":10,"rows_kept":30,"cut":false,"hidden":false,"merged":[[2,2,2,9],[2,0,29,1],[0,3,1,8]]}
[null,null,"Begrotingsformat Veilige Infra en Doorfietsroutes 2025","Dit tabblad is niet bewerkbaar, en wordt automatisch gevuld op basis van de ingevoerde gegevens in tabblad 1."]
[null,null,"2. Kostenoverzicht SSK"]
[]
[null,null,{"$f":"'1. Raming met kostenposten'!C3","v":"Naam project"},null,null,null,null,null,null,"Totaal"]
[null,null,null,null,null,null,null,"Voorziene kosten","Risicoreservering"]
[null,null,null,null,null,"Directe kosten","Indirecte kosten"]
[null,null,null,"Directe kosten\n- benoemd","Directe kosten \n- nader te detailleren"]
[]
[null,null,"Investeringskosten:"]
[]
[null,null,"Bouwkosten",{"$f":"'1. Raming met kostenposten'!G323","v":1E-3},{"$f":"'1. Raming met kostenposten'!G325","v":1.4999999999999999E-4},{"$f":"D11+E11","v":1.15E-3},{"$f":"'1. Raming met kostenposten'!G343","v":3.6499159999999999E-4},{"$f":"F11+G11","v":1.5149916E-3},{"$f":"'1. Raming met kostenposten'!G349","v":1.5149916000000002E-4},{"$f":"H11+I11","v":1.6664907600000001E-3}]
[]
[null,null,"Engineeringskosten",{"$f":"'1. Raming met kostenposten'!G358","v":0},{"$f":"'1. Raming met kostenposten'!G360","v":0},{"$f":"SUM(D13:E13)","v":0},{"$f":"'1. Raming met kostenposten'!G370","v":0},{"$f":"F13+G13","v":0},{"$f":"'1. Raming met kostenposten'!G376","v":0},{"$f":"SUM(H13:I13)","v":0}]
[]
[null,null,"Vastgoedkosten",{"$f":"'1. Raming met kostenposten'!G387","v":0},{"$f":"'1. Raming met kostenposten'!G389","v":0},{"$f":"SUM(D15:E15)","v":0},{"$f":"'1. Raming met kostenposten'!G399","v":0},{"$f":"SUM(F15:G15)","v":0},{"$f":"'1. Raming met kostenposten'!G405","v":0},{"$f":"SUM(H15:I15)","v":0}]
[]
[null,null,"Overige bijkomende kosten",{"$f":"'1. Raming met kostenposten'!G422","v":0},{"$f":"'1. Raming met kostenposten'!G424","v":0},{"$f":"SUM(D17:E17)","v":0},{"$f":"'1. Raming met kostenposten'!G434","v":0},{"$f":"SUM(F17:G17)","v":0},{"$f":"'1. Raming met kostenposten'!G440","v":0},{"$f":"SUM(H17:I17)","v":0}]
[]
[null,null,"Subtotaal",{"$f":"SUM(D17,D13,D15,D11)","v":1E-3},1.4999999999999999E-4,1.15E-3,3.6499159999999999E-4,1.5149916E-3,1.5149916000000002E-4,1.6664907600000001E-3]
[]
[null,null,{"$f":"IF('[4]Obj.overst.risicoreservering'!$B$3=FALSE,\"Objectoverstijgende risico's\"&\" (= niet meegenomen)\",\"Objectoverstijgende risicoreservering\")","v":"Objectoverstijgende risicoreservering"},null,null,null,null,null,{"$f":"'1. Raming met kostenposten'!G446","v":0},{"$f":"I21","v":0}]
[null,null,"Investeringskosten deterministisch",{"$f":"SUM(D21,D19)","v":1E-3},1.4999999999999999E-4,1.15E-3,3.6499159999999999E-4,1.5149916E-3,1.5149916000000002E-4,1.6664907600000001E-3]
[]
[null,null,"Verschuiving",null,null,null,null,null,{"$f":"IF(OR($O$18=0,O24=0),0,O24/(1+$P$18))","v":0},{"$f":"I24","v":0}]
[]
[null,null,"Investeringskosten exclusief BTW",{"$f":"SUM(D24,D22)","v":1E-3},1.4999999999999999E-4,1.15E-3,3.6499159999999999E-4,1.5149916E-3,1.5149916000000002E-4,1.6664907600000001E-3]
[]
[null,null,"BTW",null,null,null,null,null,null,{"$f":"'1. Raming met kostenposten'!G456","v":3.4996305960000002E-4}]
[]
[null,null,{"$f":"IF(SSK.BTW=1,\"Investeringskosten inclusief BTW\",\"Investeringskosten exclusief BTW\")&\" (reële kosten)\"","v":"Investeringskosten inclusief BTW (reële kosten)"},null,null,null,null,null,null,{"$f":"SUM(J28,J26)","v":2.0164538195999999E-3}]

{"sheet":"3. Subsidieblad","index":2,"n_rows":12,"n_cols":8,"rows_kept":12,"cut":false,"hidden":false,"merged":[[0,3,1,8],[11,1,11,4],[10,1,10,2],[6,3,6,7],[7,1,8,2],[7,3,8,3],[7,4,8,4],[7,5,8,5],[7,6,7,7],[9,6,10,6]]}
[null,"Begrotingsformat Veilige Infra en Doorfietsroutes 2025",null,"Dit tabblad is niet bewerkbaar, en wordt automatisch \ngevuld op basis van de ingevoerde gegevens in tabblad 1."]
[null,"3. Subsidieblad"]
[]
[]
[]
[]
[]
[null,{"$f":"'1. Raming met kostenposten'!C3","v":"Naam project"},null,"Subsidiabele Bouwkosten","Subsidiabele Overige Bijkomende kosten","Totaal Subsidiabele \nkosten","GEVRAAGDE SUBSIDIE"]
[null,null,null,null,null,null,"percentage","bedrag"]
[null,"Directe kosten",null,{"$f":"'1. Raming met kostenposten'!I327","v":0},{"$f":"'1. Raming met kostenposten'!I426","v":0},{"$f":"D10+E10","v":0},{"$f":"_xlfn.IFS('1. Raming met kostenposten'!H12=\"maak een keuze\",0,'1. Raming met kostenposten'!H12=35%,'1. Raming met kostenposten'!H12,'1. Raming met kostenposten'!H12=75%,+'1. Raming met kostenposten'!H12,'1. Raming met kostenposten'!H12=90%,+'1. Raming met kostenposten'!H12,'1. Raming met kostenposten'!H12=\"Maatwerk\",+'1. Raming met kostenposten'!H13)","v":0},{"$f":"F10*G10","v":0}]
[null,"Indirecte kosten ",null,{"$f":"'1. Raming met kostenposten'!I343","v":0},{"$f":"'1. Raming met kostenposten'!I434","v":0},{"$f":"D11+E11","v":0},null,{"$f":"F11*G10","v":0}]
[null,"TOTAAL DIRECTE + INDIRECTE KOSTEN",null,null,null,{"$f":"F10+F11","v":0},null,{"$f":"H10+H11","v":0}]